Cogmind - Beta 13 @@@ ROGUE MODE // 2024.04.16 @ 21:56:01 Player: Occam Result: Destroyed by DAS Turret with DAS Cannon Performance ------------- Evolutions (0) 0 Regions Visited (3) 600 Robots Destroyed (34) 170 Value Destroyed (630) 630 Prototype IDs (27) 540 Alien Tech Used (0) 0 Bonus (300) 300 TOTAL SCORE: 2240 Bonus ------- Aligned with FarCom 300 Cogmind --------- Core Integrity 0/250 Matter 197/300 Energy 258/310 System Corruption 0% Temperature Cool (0) Movement Walking (170) Ox1 Location -10/Exiles Parts ------- > --- POWER (1) -------- Reinforced Fission Core > --- PROPULSION (2) --- Potential Leg Potential Leg > --- UTILITY (2) ------ Improved Heat Sink High-capacity Storage Unit > --- WEAPON (2) ------- YOLO Cannon > --- INVENTORY (20) --- Light Treads Advanced Myomer Leg Wheel Compact Wheel Compact Wheel Huge Storage Unit Huge Storage Unit High-capacity Matter Pod (200) Gravity Neutralizer Transport Network Coupler Hacking Suite Improved Medium Laser Improved Medium Laser Improved Assault Rifle Improved Assault Rifle Peak State ------------ > --- POWER ------------ Reinforced Fission Core > --- PROPULSION ------- Potential Leg Potential Leg > --- UTILITY ---------- Improved Heat Sink High-capacity Storage Unit > --- WEAPON ----------- YOLO Cannon > --- INVENTORY -------- Light Treads Advanced Myomer Leg Wheel Compact Wheel Compact Wheel Huge Storage Unit Huge Storage Unit High-capacity Matter Pod Gravity Neutralizer Transport Network Coupler Hacking Suite Improved Medium Laser Improved Medium Laser Improved Assault Rifle Improved Assault Rifle [Rating: 53] Favorites ----------- Power Light Ion Engine Engine Light Ion Engine Power Core Reinforced Fission Core Propulsion Light Treads Treads Light Treads Leg Aluminum Leg Wheel Compact Wheel Utility Seismic Detector Device Seismic Detector Storage Small Storage Unit Weapon Improved Assault Rifle Energy Gun Medium Laser Energy Cannon YOLO Cannon Ballistic Gun Improved Assault Rifle Build | -11 -10 -10 -10 ------- Run | Yrd Mat Min Exi Slots Evolved . | . . . . Power . | . . . . Propulsion . | . . . . Utility . | . . . . Weapon . | . . . . Parts Attached 34 | 2 18 1 13 Power 4 | . 2 . 2 Engine 3 | . 2 . 1 Core 1 | . . . 1 Reactor . | . . . . Propulsion 12 | . 7 . 5 Treads 7 | . 5 . 2 Leg 3 | . . . 3 Wheel 2 | . 2 . . Hover . | . . . . Flight . | . . . . Utility 9 | 1 4 1 3 Device 6 | 1 2 1 2 Storage 3 | . 2 . 1 Processor . | . . . . Hackware . | . . . . Protection . | . . . . Artifact . | . . . . Weapon 9 | 1 5 . 3 Energy Gun 5 | 1 3 . 1 Energy Cannon 1 | . . . 1 Ballistic Gun 3 | . 2 . 1 Ballistic Cannon . | . . . . Launcher . | . . . . Special Weapon . | . . . . Impact Weapon . | . . . . Slashing Weapon . | . . . . Piercing Weapon . | . . . . Special Melee Weapon . | . . . . Unidentified Prototypes 4 | . 2 . 2 Parts Lost 7 | . 1 . 6 Power 2 | . . . 2 Propulsion 3 | . 1 . 2 Utility 1 | . . . 1 Weapon 1 | . . . 1 Highest Loss Streak 4 | . 1 . 4 To Critical Strikes 5 | . . . 5 Average Slot Usage (%) 98 | . 98 95 99 Engine 13 | . 14 14 12 Treads 15 | . 17 14 13 Leg 2 | . 3 . 3 Wheel 9 | . 6 14 10 Device 12 | . 13 9 13 Storage 14 | . 14 14 14 Energy Gun 7 | . 18 . . Ballistic Gun 19 | . 9 28 28 Naked Turns . | . . . . Heaviest Build 90 | 15 90 30 80 Greatest Support 72 | 20 40 16 72 Greatest Overweight (x) 5 | . 5 1 3 Average Overweight (x) 1 | . . 1 1 Largest Inventory Capacity 25 | 8 25 15 20 Average Capacity 13 | 8 9 15 18 Most Carried 20 | 7 15 14 20 Average Carried 12 | 6 8 14 15 Final Capacity 20 | 8 15 15 20 Final Carried 15 | 7 14 14 15 Class Distribution -------------------- 100% | Mutant Dominant Class ---------------- Mutant | -10/Materials Mutant | -10/Mines Mutant | -10/Exiles Resources | -11 -10 -10 -10 ----------- Run | Yrd Mat Min Exi Matter Collected 1061 | 220 534 10 297 Remotely . | . . . . Salvage Created 1231 | 159 940 . 132 Parts 62 | 6 53 . 3 Haulers Intercepted 2 | . 2 . . Recyclers Shooed 1 | . 1 . . Parts Field Recycled . | . . . . Retrieved Matter . | . . . . Parts Self-Destructed . | . . . . Prevented . | . . . . Kills | -11 -10 -10 -10 ------- Run | Yrd Mat Min Exi Combat Hostiles Destroyed 21 | . 19 . 2 Guns 20 | . 18 . 2 Classes Destroyed 9 | 2 6 . 1 Worker 3 | . 3 . . Tunneler 3 | 3 . . . Hauler 2 | . 2 . . Recycler 2 | 1 1 . . Operator 1 | . 1 . . Watcher 3 | . 3 . . Swarmer 6 | . 6 . . Grunt 13 | . 13 . . Assembled 1 | . . . 1 Best Kill Streak 4 | 2 4 . 1 Combat Bots Only 4 | . 4 . 1 Max Kills in Single Turn 2 | 1 2 . 1 Gunslinging 1 | . 1 . . Exploded . | . . . . Melee . | . . . . Uniques/NPCs Destroyed 1 | . . . 1 8R-AWN (-10/Exiles) Combat | -11 -10 -10 -10 -------- Run | Yrd Mat Min Exi Hostile Shots Fired 154 | . 64 . 90 Missed 39 | . 18 . 21 Damage Taken 1889 | . 503 . 1386 Core 291 | . 73 . 218 Absorbed by Shields . | . . . . Core Remaining (%) 100 | 100 . . . Volleys Fired 143 | 12 78 . 53 Largest 2 | 2 2 . 2 Hottest 115 | 100 115 . 100 Shots Fired 282 | 24 156 . 102 Gun 280 | 24 156 . 100 Cannon 2 | . . . 2 Launcher . | . . . . Special . | . . . . Kinetic 143 | . 43 . 100 Thermal 139 | 24 113 . 2 Explosive . | . . . . Electromagnetic . | . . . . Robot Hit Streak 27 | 12 27 . 19 Robot Miss Streak 4 | 2 4 . 2 Penetration Max . | . . . . Secondary Targets 2 | . 1 . 1 Max Gunslinging Chain 1 | . 1 . 1 Shots Hit Robots 202 | 16 105 . 81 Core Hits 52 | 4 37 . 11 Critical Kills . | . . . . Critical Parts Destroyed 1 | . . . 1 Critical Strikes 9 | 3 5 . 1 Burn 8 | 3 5 . . Destroy 1 | . . . 1 Melee Attacks . | . . . . Impact . | . . . . Slashing . | . . . . Piercing . | . . . . Sneak Attacks . | . . . . Combat Hostiles . | . . . . Follow-up Attacks . | . . . . Damage Inflicted 3042 | 199 1631 . 1212 Guns 3042 | 199 1631 . 1212 Cannons . | . . . . Explosions . | . . . . Melee . | . . . . Ramming . | . . . . Kinetic 1630 | . 418 . 1212 Thermal 1412 | 199 1213 . . Explosive . | . . . . Electromagnetic . | . . . . Impact . | . . . . Slashing . | . . . . Piercing . | . . . . Highest Corruption . | . . . . Average Corruption . | . . . . Corruption Purged . | . . . . Corruption Blocked . | . . . . Overload Shots . | . . . . Overflow Damage . | . . . . Projectiles . | . . . . Explosions . | . . . . Melee . | . . . . Knockbacks . | . . . . Impact . | . . . . Kinetic . | . . . . Secondary . | . . . . Self-Inflicted Damage . | . . . . Shots . | . . . . Rammed . | . . . . Targets Rammed . | . . . . Kicked . | . . . . Crushed . | . . . . Highest Temperature 629 | 234 629 . 1 Average Temperature 167 | 111 191 . 1 Received Heat Transfer 264 | . 246 . 18 Effects 16 | . 16 . . Energy Bleed 4 | . 4 . . Matter Decay 1 | . 1 . . Short Circuit 4 | . 4 . . Damage (minor) 1 | . 1 . . Damage (major) 6 | . 6 . . Siege Activations . | . . . . Robots Corrupted . | . . . . Combat Hostiles . | . . . . Parts Fried . | . . . . Impact Corruptions . | . . . . Robots Melted 2 | 1 1 . . Combat Hostiles 1 | . 1 . . Parts Melted 13 | 3 10 . . Heat Transferred 4144 | 814 3330 . . Parts Sabotaged . | . . . . Parts Stolen . | . . . . Parts Stripped . | . . . . Power Chain Reactions . | . . . . Alert | -11 -10 -10 -10 ------- Run | Yrd Mat Min Exi Peak Influence 257 | 20 257 58 . Initial 58 | . 13 58 . Average 97 | 11 132 33 . Maximum Alert Level 1 | . 1 . . Low Security (%) 84 | 100 76 100 . Level 1 15 | . 23 . . Level 2 . | . . . . Level 3 . | . . . . Level 4 . | . . . . Level 5 . | . . . . High Security . | . . . . Max Security . | . . . . Squads Dispatched 3 | . 3 . . Investigation 2 | . 2 . . Extermination . | . . . . Reinforcement 1 | . 1 . . Assault . | . . . . Garrison . | . . . . Intercept . | . . . . Searches Triggered . | . . . . Construction Impeded . | . . . . Haulers Reinforced . | . . . . Active Scanning Responses . | . . . . Cargo Convoy Interrupts . | . . . . Stealth | -11 -10 -10 -10 --------- Run | Yrd Mat Min Exi Distress Signals 1 | . 1 . . Communications Jammed . | . . . . Distress Signals . | . . . . Times Spotted 43 | . 26 . 17 Peak Tracking Total 9 | . 5 . 9 Tactical Retreats 2 | . . . 2 Traps | -11 -10 -10 -10 ------- Run | Yrd Mat Min Exi Traps Triggered 2 | . 2 . . Indirectly . | . . . . Trap Hack Attempts . | . . . . Triggered . | . . . . Disarmed . | . . . . Reprogrammed . | . . . . Reused . | . . . . Traps Extracted . | . . . . Installed . | . . . . Triggered . | . . . . Machines | -11 -10 -10 -10 ---------- Run | Yrd Mat Min Exi Machines Disabled 5 | . 1 . 4 Max in Single Turn 1 | . 1 . 1 Machines Repaired . | . . . . Machines Dismantled . | . . . . Machines Sabotaged . | . . . . Overloaded Fab Kills . | . . . . Hacking | -11 -10 -10 -10 --------- Run | Yrd Mat Min Exi Machines Accessed 8 | . 6 . 2 Terminals 6 | . 6 . . Fabricators . | . . . . Repair Stations . | . . . . Recycling Units . | . . . . Scanalyzers . | . . . . Garrison Access . | . . . . Total Hacks 19 | . 17 . 2 Successful 9 | . 7 . 2 Failed 9 | . 9 . . Catastrophic 2 | . 2 . . Database Lockouts 1 | . 1 . . Manual 17 | . 16 . 1 Terminals 17 | . 17 . . Fabricators . | . . . . Repair Stations . | . . . . Recycling Units . | . . . . Scanalyzers . | . . . . Garrison Access . | . . . . Terminal Hacks 7 | . 5 . 2 Record 1 | . . . 1 Robot Analysis 3 | . 3 . . Locate Traps 1 | . 1 . . Hauler Manifests 1 | . 1 . . Derelict Proto ID Bank 1 | . . . 1 Fabricator Hacks . | . . . . Repair Station Hacks . | . . . . Recycling Unit Hacks . | . . . . Scanalyzer . | . . . . Garrison Access Hacks . | . . . . Unauthorized Hacks 2 | . 2 . . Terminals 2 | . 2 . . Botnet 2 | . 2 . . Fabricators . | . . . . Repair Stations . | . . . . Recycling Units . | . . . . Scanalyzers . | . . . . Garrison Access . | . . . . Data Cores Recovered . | . . . . Used . | . . . . Hacking Detections 5 | . 5 . . Full Trace Events 1 | . 1 . . Feedback Events . | . . . . Feedback Blocked . | . . . . Robot Schematics Acquired . | . . . . Robots Built . | . . . . Authchips . | . . . . Time . | . . . . Total Robot Build Rating . | . . . . Part Schematics Acquired . | . . . . Parts Built . | . . . . Authchips . | . . . . Time . | . . . . Total Part Build Rating . | . . . . Parts Repaired . | . . . . Time . | . . . . Parts Recycled . | . . . . Recycled Matter . | . . . . Retrieved Matter . | . . . . Retrieved Components . | . . . . Parts Scanalyzed . | . . . . Part Schematics Acquired . | . . . . Parts Damaged . | . . . . Bothacking | -11 -10 -10 -10 ------------ Run | Yrd Mat Min Exi Used RIF Installer . | . . . . Robots Hacked . | . . . . Non-combat . | . . . . Combat . | . . . . Robot Hacks Applied . | . . . . Relay Couplers Released . | . . . . Fabnet Peak Effective % . | . . . . Robots Rewired . | . . . . Allies Hacked . | . . . . Hacks Repelled . | . . . . Allies | -11 -10 -10 -10 -------- Run | Yrd Mat Min Exi Total Allies 4 | . . 4 . Largest Group 4 | . . 4 4 Highest-Rated Group 71 | . . 71 71 Highest-Rated Ally 31 | . . 31 31 Total Orders 1 | . . . 1 STAY 1 | . . . 1 Ally Attacks 82 | . . . 82 Total Damage 396 | . . . 396 Kills 2 | . . . 2 Allies Corrupted . | . . . . Allies Melted . | . . . . Intel | -11 -10 -10 -10 ------- Run | Yrd Mat Min Exi Robot Analysis Total 3 | . 3 . . Derelict Logs Recovered 3 | . . 3 . Drone Launches . | . . . . Drone Recoveries . | . . . . Exploration | -11 -10 -10 -10 ------------- Run | Yrd Mat Min Exi Turns Passed 3448 | 94 1457 681 1216 Spaces Moved 2233 | 18 897 569 749 Core . | . . . . Treads 281 | . 269 . 12 Legs 244 | 18 128 . 98 Wheels 1708 | . 500 569 639 Hover . | . . . . Flight . | . . . . Fastest Speed 90 | 120 95 115 90 Average Speed 124 | 120 124 115 133 Slowest Speed 250 | 120 175 115 250 Overloaded Moves . | . . . . Propulsion Burnouts . | . . . . Robots Hopped . | . . . . Cave-ins Triggered . | . . . . Exploration Rate (%) 65 | 3 95 97 67 Regions Visited 3 Branch Regions 2 Pre-discovered Areas 1 | . . . 1 Known Exits Taken . | . . . . Unknown Exits Taken 3 | 1 1 1 . Scrap Searched 2 | . . 2 . Spaces Dug . | . . . . Terrain Destroyed . | . . . . Melee . | . . . . Projectile . | . . . . AOE . | . . . . Terrain Rammed . | . . . . Walls Destroyed . | . . . . Machines Disabled . | . . . . Actions | -11 -10 -10 -10 --------- Run | Yrd Mat Min Exi Total 2614 | 65 1091 595 863 Wait 152 | 33 60 26 33 Move 2230 | 17 896 568 749 Hop . | . . . . Pick Up 22 | 1 15 . 6 Fast Attach 15 | 1 9 1 4 Attach 8 | . 3 . 5 Detach 8 | . 4 . 4 Swap 11 | 1 6 . 4 Drop 25 | . 20 . 5 Fire 143 | 12 78 . 53 Melee . | . . . . Ram . | . . . . Kick . | . . . . Crush . | . . . . Escape Stasis . | . . . . Rewire . | . . . . Trap . | . . . . Miscellaneous . | . . . . Route ------- -11/Scrapyard -10/Materials (discovered 4 exits: [*Mat x3] / [*Min]) -10/Mines (discovered 3 exits: [*Mat x2] / *Exi) -10/Exiles History --------- Turn | Location | Event 19 | -11/Scrapyard | Discovered new exit (range 3) 95 | -11/Scrapyard | Entered Materials 302 | -10/Materials | Build established: Mutant 625 | -10/Materials | Discovered new exit (range 16) 736 | -10/Materials | Discovered new exit (range 6) 821 | -10/Materials | Discovered new exit (range 16) 1111 | -10/Materials | Central database locked down 1371 | -10/Materials | Discovered new exit (range 8) 1552 | -10/Materials | Entered Mines 1579 | -10/Mines | Discovered new exit (range 14) 1610 | -10/Mines | Discovered new exit (range 13) 1753 | -10/Mines | Assisted by bots powering up and referring to "LRC-V3" 2007 | -10/Mines | Deemed a non-threat by the Exiles lab entrance 2007 | -10/Mines | Discovered new exit (range 5) 2069 | -10/Mines | Received a Mining Laser from a helpful Derelict 2071 | -10/Mines | Learned 8 Materials zone layouts 2099 | -10/Mines | Learned Materials emergency access door positions 2233 | -10/Mines | Entered Exiles 2233 | -10/Exiles | Accompanied by 4 allies 2266 | -10/Exiles | Met 8R-AWN 2282 | -10/Exiles | Met EX-HEX 2316 | -10/Exiles | Met EX-BIN 2329 | -10/Exiles | Aligned with FarCom system 2330 | -10/Exiles | Given EX-Vault access code 2357 | -10/Exiles | Opened EX-Vault 2390 | -10/Exiles | Warned to stay clear of 0b10 Research branches 2424 | -10/Exiles | Met EX-DEC 2431 | -10/Exiles | Learned location of Zion (-6) 2904 | -10/Exiles | Found YOLO Cannon 2907 | -10/Exiles | Found Potential Leg 2910 | -10/Exiles | Found Potential Leg 3086 | -10/Exiles | Attacked by the Exiles 3213 | -10/Exiles | Core integrity fell below 50% 3262 | -10/Exiles | Core integrity fell below 20% 3263 | -10/Exiles | Lost 4 parts (1p2n1w) 3308 | -10/Exiles | Destroyed 8R-AWN 3449 | -10/Exiles | Destroyed by DAS Turret with DAS Cannon Last Messages --------------- 03292_ Penetrated by HV Slug. 03296_ Seismic Detector destroyed. 03299_ Penetrated by HV Slug. 03300_ Destroyed Prototype Protection. 03301_ Penetrated by HV Slug. 03308_ 8R-AWN destroyed. 03314_ Acquired 115 matter. 03318_ Acquired Rnf. Fission Core. 03322_ Acquired Prototype Leg. 03322_ Identified Adv. Myomer Leg. 03327_ Acquired Prototype Device. 03327_ Identified Gravity Neutralizer. 03332_ Acquired 44 matter. 03340_ Acquired 60 matter. 03366_ Acquired 7 matter. 03368_ Acquired 13 matter. 03378_ Acquired 10 matter. 03397_ Acquired Imp. Heat Sink. 03444_ Machine disabled. 03447_ Knocked back. Map ----- +----------------------------------------------------+ | ???????????????????????????????????#" ## # | | ???????????????????????????????????#""""""?# # | | ???????????????????????????????????##"###??# # | | ???????????????????????????????????????????# # | | ???????????????????????????????????????????# # | | ??????????????????????????????????????????## # | | ??????????#######?????????????????????????#" | | ###???????#!!! "#?????????????????????????#" | | #""#??????# "#?????????????????????????#" | | ??????# "#?????????????????????????#" | | ##???## ""#????????????####?????????#" | | #####" ""#???????????? """????????#" | | ##" ""?????????????" """#???????## | | #"" #?????????????"" #????????# | | #????????????#"" #????????#" | | #"" ##???????????#"" "#????????#" | | ???#" = #???????????? ""?????????#" | | ####" ###???????????" "?????????##" # | | ###?????????# #????????##"" # | | ""#"" ;#####???### ###?######"" # | | = "####" ""#####X# #"###""""""" # | | ##??#" """""" " "" | | """"###???#"# "" """ " | | ######?????###; " | | ?????????????###; % | | ???????????????#### @ | | ??????????????????#; | | ??????????????????### % | | ????????????????????##" | | ?????????????????????#" " """""" | | ????????????????????##" ######""" | | ????????????????????#"" ""##????##### | | ????????????????????#""" """##?????????# | | ????????????????????""" """##??????????? | | ????????????????????""" ""#???????????# | | ????????????????????"" ########??#### | | ????????????????????""" ## ####""" | | ????????????????????"" """" | | ????????????????????#"" t | | ????????????????????#"""" | | ?????????????????????# | | ??????????????????????" " " | | ??????????????????????"""" ""## ##" | | ???????????????????????" ""#### ### | | ??????????????????????? """"##??# #?? | | ???????????????????????"" """#??## ### | | ???????????????????????? ""##??#! "! | | ????????????????????????? """#????#" ! | | ??????????????????????????? ??????#" " | | ????????????????????????????" ???????# !""!" | +----------------------------------------------------+ Best States ------------- Heat Dissipation 39 Energy Generation 19 Energy Capacity 310 Matter Stores 300 Matter Capacity 300 Sight Range 16 Terrain Scan Range 14 Terrain Scan Density 10 Additional Mass Support 12 Evasion (%) 55 Recoil Reduction 2 Item Schematics ----------------- None Robot Schematics ------------------ None Fabricated ------------ Nothing Alien Tech Used ----------------- None Achievements -------------- None Challenges ------------ None Game ------ Seed LongswordBarrageLattice Manual? 0 Play Time 00:30:58 Cumulative 225.4 hours Start 2024.04.16 @ 04:34:21 End 2024.04.16 @ 21:56:01 Sessions 5 Manual Loads 0 Difficulty Rogue Special Mode None Game No. 145 Rogue 1 Adventurer 144 Explorer 0 Win Type - Total 4 Types 2/0/1/1/0/0/0/0/0 Lore% 63 Gallery% 73 Achievement% 62 Wizard Run 0 Options --------- Layout 0 ASCII 0 Keyboard 0 Movement Mouse Keybinds 0 Fullscreen 2 Font 20/SmallcapsGlow Map View 66x50 Zoom Use 0% Tactical HUD 1 Map Filters NONE Filters NONE Steam X RUN: e074a39a-73fb-456d-b5b4-9113b4d68562